bitfinex/quotes_ETHUSD_20210701
["timestamp","ask_amount","ask_price","bid_price","bid_amount"]
[1625158106577,0.00649756,2088.6,2086.7,28.27274875]
[1625158106681,0.00649756,2088.6,2086.7,20.27274875]
[1625158106882,7.18305,2088.1,2086.7,20.27274875]
[1625158106982,0.00649756,2088.6,2086.7,28.27274875]
[1625158107083,0.00649756,2088.6,2086.7,30.98050221]
[1625158107496,0.00649756,2088.6,2086.8,0.13779398]
[1625158107596,0.00649756,2088.6,2087.6,9.017]
[1625158108426,7.18169,2088.5,2087.6,9.017]
[1625158108722,7.18169,2088.5,2087.6,4.007]
[1625158108824,7.18169,2088.5,2086.8,0.15]
[1625158108978,20.0,2088.5,2086.8,0.15]
[1625158109182,8.0,2088.5,2086.8,0.15]
[1625158109277,6.16927298,2088.8,2086.8,0.15]
[1625158109375,4.0418,2088.8,2086.8,4.6074]
[1625158109523,7.18203,2088.5,2086.8,4.6074]
[1625158110023,7.18203,2088.5,2086.9,5.01]
[1625158110228,7.18203,2088.5,2087.0,0.15]
[1625158110553,0.01321203,2088.4,2087.0,0.15]
[1625158111059,0.01321203,2088.4,2087.7,5.01]
[1625158111154,0.01321203,2088.4,2087.7,9.7928]
[1625158111259,0.01321203,2088.4,2087.8,0.15]
[1625158111758,2.03e-06,2088.4,2087.8,0.15]
[1625158112055,2.03e-06,2088.4,2087.9,2.70775346]
[1625158112259,2.03e-06,2088.4,2088.0,0.15]
[1625158112456,2.03e-06,2088.4,2088.0,2.59447892]
[1625158112662,2.03e-06,2088.4,2088.2,3.46]
[1625158112825,2.03e-06,2088.4,2088.3,0.15]
[1625158113127,2.03e-06,2088.4,2088.3,2.85775346]
[1625158113277,2.03e-06,2088.4,2088.3,15.88370346]
[1625158113379,2.03e-06,2088.4,2088.3,13.17595]
[1625158113677,2.03e-06,2088.4,2088.3,25.42765]
[1625158114076,2.03e-06,2088.4,2088.3,28.13540346]
[1625158115076,2.03e-06,2088.4,2088.3,33.14540346]
[1625158116317,2.03e-06,2088.4,2088.3,20.13540346]
[1625158117711,2.03e-06,2088.4,2088.3,33.14540346]
[1625158117961,2.03e-06,2088.4,2088.3,30.43765]
[1625158118363,2.03e-06,2088.4,2088.3,33.14540346]
[1625158119064,2.03e-06,2088.4,2088.3,36.19000346]
[1625158121103,2.03e-06,2088.4,2088.3,33.48225]
[1625158121507,4.04e-06,2088.4,2088.3,33.48225]
[1625158121861,4.04e-06,2088.4,2088.3,35.9664085]
[1625158121967,4.04e-06,2088.4,2088.3,50.9664085]
[1625158122064,4.04e-06,2088.4,2088.3,53.20724127]
[1625158122362,4.04e-06,2088.4,2088.3,54.1522159]
[1625158123265,3.9,2090.8,2088.6,7.17252596]
[1625158123365,3.9,2090.8,2088.9,3.5862263]
[1625158123464,7.17269,2091.2,2089.0,0.39587174]
[1625158123715,11.52086041,2091.4,2089.1,0.15]
[1625158123819,11.52086041,2091.4,2089.2,0.44641761]
[1625158123914,11.52086041,2091.4,2089.2,0.46421271]
[1625158124053,0.08,2091.3,2089.4,0.41838974]
[1625158124154,0.03,2091.3,2089.4,3.95290079]
[1625158124255,11.52086041,2091.4,2089.5,0.15]
[1625158124357,7.68586041,2091.6,2090.1,0.28307786]
[1625158124467,0.51406041,2091.6,2090.1,3.96233193]
[1625158124558,0.51406041,2091.6,2090.2,0.42267018]
[1625158124660,12.4,2091.5,2090.1,6.56343487]
[1625158124761,12.4,2091.5,2090.1,14.35327401]
[1625158124854,12.4,2091.5,2090.1,1.55343487]
[1625158124956,12.4,2091.5,2090.2,0.15]
[1625158125054,0.51406041,2091.6,2090.2,0.15]
[1625158125355,7.68562041,2091.6,2090.2,0.15]
[1625158125458,7.17156,2091.6,2090.2,0.15]
[1625158125705,9.56233,2091.7,2090.2,0.15]
[1625158125808,0.51406041,2092.1,2090.2,0.15]
[1625158126207,0.55406041,2092.1,2090.2,0.15]
[1625158126458,0.04,2092.1,2090.5,7.16961]
[1625158126560,9.56042,2092.2,2090.5,12.17961]
[1625158126659,3.58558,2092.4,2090.6,0.15]
[1625158126757,15.5380512,2092.6,2090.6,0.15]
[1625158126859,11.95264,2092.6,2090.6,0.15]
[1625158126956,24.96264,2092.6,2090.6,0.15]
[1625158127260,0.14,2092.5,2090.6,0.15]
[1625158127358,2.318,2092.5,2090.6,0.15]
[1625158127462,9.56006,2092.2,2090.7,7.16909]
[1625158127557,2.318,2092.5,2090.7,16.15849]
[1625158127558,7.16936,2092.3,2090.7,16.15849]
[1625158127659,7.16936,2092.3,2090.8,0.15]
[1625158127859,12.17936,2092.3,2090.8,0.15]
[1625158127965,15.7649928,2092.3,2090.7,5.01]
[1625158128113,0.2,2092.2,2090.5,5.01]
[1625158128210,0.2,2092.2,2090.2,0.15]
[1625158128309,0.21117671,2092.1,2090.2,0.15]
[1625158128607,22.5898328,2092.3,2090.2,0.15]
[1625158128608,4.3187,2092.3,2090.2,0.15]
[1625158128702,15.34836,2092.4,2090.2,13.1639]
[1625158128803,11.76292,2092.4,2090.2,13.1639]
[1625158128904,2.046,2092.4,2090.2,18.1739]
[1625158129053,2.046,2092.4,2090.3,2.51071018]
[1625158129152,14.55470041,2092.6,2090.3,2.49251391]
[1625158129298,14.55470041,2092.6,2090.4,0.15]
[1625158129401,14.56670041,2092.6,2090.4,0.15]
[1625158129663,7.1686,2092.5,2091.1,7.168]
[1625158129757,2.082,2092.6,2091.0,1.1237]
[1625158129959,21.65576041,2093.0,2091.1,0.15]
[1625158130054,0.51406041,2093.0,2091.1,0.15]
[1625158130402,0.51406041,2093.0,2091.1,0.16656917]
[1625158130503,0.08,2092.9,2091.1,0.15]
[1625158130820,7.16681,2092.9,2091.5,7.1668]
[1625158130910,7.16681,2092.9,2091.5,10.5417]
[1625158131065,7.16681,2092.9,2091.5,15.7017]
[1625158131414,2.076,2093.4,2091.5,15.7017]
[1625158131516,2.172,2093.4,2091.5,16.5349]
[1625158131613,2.172,2093.4,2091.5,19.0190585]
[1625158131862,20.8667,2093.6,2091.5,19.0190585]
[1625158131963,20.8667,2093.6,2091.6,0.00915077]
[1625158132113,10.8243,2093.6,2091.7,0.15]
[1625158132269,10.8243,2093.6,2092.3,7.16366]
[1625158132364,12.29133466,2093.8,2092.3,10.45906]
[1625158132365,1.73483466,2093.8,2092.3,10.45906]
[1625158132466,0.01191501,2092.9,2092.4,0.15]
[1625158134429,0.01191501,2092.9,2092.5,7.16269]
[1625158134530,5.01e-06,2092.9,2092.5,12.17269]
[1625158134630,5.01e-06,2092.9,2092.6,0.15]
[1625158135126,5.01e-06,2092.9,2092.5,8.07898494]
[1625158135537,5.01e-06,2092.9,2092.5,5.01]
[1625158135688,5.01e-06,2092.9,2092.3,0.15]
[1625158137675,5.01e-06,2092.9,2091.7,19.97777]
[1625158137676,5.01e-06,2092.9,2091.7,10.4245]
[1625158137922,0.18,2092.8,2091.7,10.4245]
[1625158138071,0.21862939,2092.7,2090.9,20.6609]
[1625158138169,0.21862939,2092.7,2090.9,27.82882]
[1625158138170,7.16863,2092.5,2090.9,27.82882]
[1625158138324,0.28396861,2092.4,2090.9,10.5096]
[1625158138519,0.28396861,2092.4,2090.7,10.6491]
[1625158138723,0.2,2092.3,2090.7,10.6491]
[1625158138920,0.39073373,2092.2,2090.7,10.6491]
[1625158139170,0.40443975,2092.2,2090.7,10.6491]
[1625158139373,0.39073373,2092.2,2090.7,10.6491]
[1625158139524,0.39073373,2092.2,2090.3,21.6103]
[1625158139525,7.17105,2091.9,2090.3,28.78068]
[1625158139624,0.2912641,2091.8,2090.3,11.2411]
[1625158139871,0.18,2091.7,2090.3,11.0911]
[1625158139973,0.33016663,2091.6,2089.8,0.15]
[1625158140470,7.17227,2091.5,2090.1,7.17126]
[1625158140620,0.3005029,2091.4,2090.1,7.17126]
[1625158140719,4.266,2091.4,2090.1,7.17126]
[1625158140822,0.24502245,2091.3,2090.1,7.17126]
[1625158140919,0.44502245,2091.3,2090.1,7.17126]
[1625158141419,0.24502245,2091.3,2090.1,7.17126]
[1625158141721,0.24502245,2091.3,2089.8,0.15]
[1625158142091,0.25817476,2091.3,2089.6,9.56263]
[1625158142290,1.49147476,2091.3,2089.6,9.56263]
[1625158142391,0.14,2091.2,2089.4,21.3879]
[1625158142588,0.47716442,2091.1,2089.4,21.3879]
[1625158143483,7.17446,2090.6,2089.4,17.51356]
[1625158143634,4.005,2090.6,2089.4,17.51356]
[1625158143736,3.995,2090.6,2089.4,17.51356]
[1625158143837,2.8325,2090.7,2089.4,17.51356]
[1625158143935,0.22411819,2091.2,2089.5,0.15]
[1625158144035,0.01274474,2091.2,2089.5,0.15]
[1625158144316,0.01274474,2091.2,2089.5,1.10208924]
[1625158144420,0.01274474,2091.2,2089.5,0.15]
[1625158144519,0.01274474,2091.2,2090.1,9.56133]
[1625158144621,0.01274474,2091.2,2090.1,12.63573]
[1625158145016,0.01274474,2091.2,2090.1,17.64573]
[1625158145120,0.02274474,2091.4,2090.1,8.0844]
[1625158145220,2.1183,2091.6,2090.1,3.0744]
[1625158145321,0.26560652,2091.5,2090.1,3.0744]
[1625158145519,5.24230652,2091.5,2090.1,3.0744]
[1625158145668,7.17343,2090.9,2089.6,9.56338]
[1625158145769,11.78613,2090.9,2089.6,9.56338]
[1625158146168,16.79613,2090.9,2089.4,10.3394]
[1625158146371,0.43555951,2090.8,2089.4,10.3394]
[1625158146613,0.44883573,2090.8,2089.4,10.3394]
[1625158146716,0.44883573,2090.8,2089.1,0.15]
[1625158146966,29.56724,2090.6,2089.0,0.2]
[1625158147067,4.9339,2090.4,2089.0,0.2]
[1625158147164,0.33454764,2090.3,2089.0,0.2]
[1625158147263,0.35032841,2090.3,2089.0,0.2]
[1625158147463,0.14,2090.2,2089.0,0.2]
[1625158147568,0.25332899,2090.1,2089.0,0.2]
[1625158148072,0.14,2090.2,2089.0,7.37576]
[1625158148622,0.14,2090.2,2089.0,0.2]
[1625158148718,0.21201259,2090.1,2089.0,0.2]
[1625158149166,7.1774,2089.9,2089.0,0.2]
[1625158149261,27.10900959,2089.9,2089.0,0.2]
[1625158149465,55.10900959,2089.9,2089.0,0.2]
[1625158149614,10.0,2089.8,2089.0,0.2]
[1625158149710,0.27679688,2089.7,2089.0,0.2]
[1625158150192,5.21,2089.8,2089.0,0.2]
[1625158150292,0.2,2089.8,2089.0,0.2]
[1625158151173,20.2,2089.8,2089.0,0.2]
[1625158151321,15.0,2089.7,2089.0,0.2]
[1625158151472,33.0,2089.7,2089.0,0.2]
[1625158151569,5.01,2089.7,2089.0,0.2]
[1625158151671,0.2,2089.8,2089.0,0.2]
[1625158151772,5.21,2089.8,2089.0,0.2]
[1625158151924,0.2,2089.8,2089.0,0.2]
[1625158152219,0.01325443,2090.0,2089.0,0.2]
[1625158152320,2.13473909,2090.2,2089.0,0.2]
[1625158152431,0.01673909,2090.2,2089.0,0.2]
[1625158152622,15.01673909,2090.2,2089.0,0.2]
[1625158152873,7.37784,2090.1,2089.0,0.2]
[1625158152972,15.0,2090.0,2089.0,0.2]
[1625158153121,15.01415297,2090.0,2089.0,0.2]
[1625158153364,10.0,2089.9,2089.0,0.2]
[1625158153519,25.0,2089.9,2089.0,0.2]
[1625158153614,4.9225,2090.1,2089.0,0.2]
[1625158153718,9.94595024,2090.1,2089.0,0.2]
[1625158153868,14.93595024,2090.1,2089.0,0.2]
[1625158153964,19.94595024,2090.1,2089.0,0.2]
[1625158154164,34.94595024,2090.1,2089.0,0.2]
[1625158154319,35.1556795,2090.1,2089.0,0.2]
[1625158154416,7.17826,2089.9,2089.0,0.2]
[1625158154717,15.0,2089.8,2089.0,0.2]
[1625158154915,25.0,2089.8,2089.0,0.2]
[1625158155016,0.2,2089.7,2089.0,0.2]
[1625158155469,7.37865,2089.7,2089.0,0.2]
[1625158155610,12.38865,2089.7,2089.0,0.2]
[1625158155709,25.0,2089.6,2089.0,0.2]
[1625158155807,30.852,2089.6,2089.0,0.2]
[1625158156110,30.752,2089.6,2089.0,0.2]
[1625158157112,5.852,2089.6,2089.0,0.2]
[1625158157313,4.5125,2089.6,2089.0,0.2]
[1625158157516,14.5125,2089.6,2089.0,0.2]
[1625158157617,15.5171,2089.6,2089.0,0.2]
[1625158157717,17.2077,2089.6,2089.0,0.2]
[1625158157858,7.2077,2089.6,2089.0,0.2]
[1625158159060,4.5125,2089.6,2089.0,0.2]
[1625158159210,0.04,2089.5,2089.0,0.2]
[1625158160585,4.1574,2089.5,2089.0,0.2]
[1625158160687,20.0,2089.4,2089.0,0.2]
[1625158160838,15.0,2089.3,2089.0,0.2]
[1625158161035,20.01,2089.3,2089.0,0.2]
[1625158161183,28.01,2089.3,2089.0,0.2]
[1625158161585,0.2,2089.2,2089.0,0.2]
[1625158161688,7.38081,2089.2,2089.0,0.2]
[1625158161840,0.2,2089.2,2088.7,0.02223537]
[1625158162193,11.73483466,2089.7,2088.7,0.02223537]
[1625158162477,10.0,2089.7,2088.7,0.02223537]
[1625158162629,0.21098588,2089.6,2088.7,0.02223537]
[1625158162720,4.61038588,2089.6,2088.7,0.02223537]
[1625158162876,7.1804,2089.4,2088.7,0.02223537]
[1625158163273,10.3644,2089.4,2088.7,0.02223537]
[1625158163371,35.3644,2089.4,2088.7,0.02223537]
[1625158163521,8.0,2089.3,2088.7,0.02223537]
[1625158163619,15.0,2089.3,2088.7,0.02223537]
[1625158163772,44.4012,2089.3,2088.7,0.02223537]
[1625158163871,52.4012,2089.3,2088.7,0.02223537]
[1625158163975,7.18104,2089.2,2088.7,0.02223537]
[1625158164071,15.0,2089.1,2088.7,0.02223537]
[1625158164174,25.0,2089.1,2088.7,0.02223537]
[1625158164372,30.01,2089.1,2088.7,0.02223537]
[1625158164582,28.01,2089.1,2088.7,0.02223537]
[1625158164673,0.30387374,2088.9,2087.6,1.01129757]
[1625158165506,0.01603044,2089.0,2087.6,1.01129757]
[1625158165608,0.01328633,2088.9,2087.6,1.01129757]
[1625158166462,0.01328633,2088.9,2087.6,8.19184757]
[1625158166567,0.01328633,2088.9,2087.7,0.15]
[1625158166722,0.01328633,2088.9,2087.7,3.8205]
[1625158166829,0.01328633,2088.9,2087.7,8.27619071]
[1625158166921,0.01328633,2088.9,2087.7,13.28619071]
[1625158167674,0.01328633,2088.9,2088.3,7.17795]
[1625158167776,0.01328633,2088.9,2087.7,13.13619071]
[1625158167873,0.01328633,2088.9,2088.4,0.15]
[1625158167971,0.01328633,2088.9,2087.7,13.13619071]
[1625158167972,0.01328633,2088.9,2088.5,0.15]
[1625158168172,0.01328633,2088.9,2088.6,0.15]
[1625158168673,0.01328633,2088.9,2088.1,0.15]
[1625158168875,0.01328633,2088.9,2087.3,10.6071]
[1625158168974,0.01328633,2088.9,2087.5,0.15]
[1625158169369,0.01328633,2088.9,2088.0,9.57261]
[1625158170070,0.01328633,2088.9,2088.0,14.58261]
[1625158170420,0.01328633,2088.9,2088.0,14.73261]
[1625158171783,0.01328633,2088.9,2088.0,5.16]
[1625158171982,0.01328633,2088.9,2088.0,0.15]
[1625158172083,0.01328633,2088.9,2088.0,5.16]
[1625158172283,0.01328633,2088.9,2088.0,0.15]
[1625158172385,0.01328633,2088.9,2088.0,5.16]
[1625158172786,0.01328633,2088.9,2088.0,0.15]
[1625158172888,0.01328633,2088.9,2088.0,14.73261]
[1625158173188,0.01328633,2088.9,2088.1,2.28826458]
[1625158173386,0.01328633,2088.9,2088.2,0.15]
[1625158174480,0.01328633,2088.9,2088.5,7.17692]
[1625158174579,0.01328633,2088.9,2088.5,12.18692]
[1625158175279,6.33e-06,2088.9,2088.5,12.18692]
[1625158175534,6.33e-06,2088.9,2088.5,22.47518458]
[1625158175687,4.00000633,2090.1,2088.6,0.15]
[1625158175841,0.51406041,2090.4,2088.6,0.21]
[1625158175937,0.51406041,2090.4,2088.7,4.45596087]
[1625158176034,0.51406041,2090.4,2088.7,9.46596087]
[1625158176133,0.51406041,2090.4,2088.8,0.15]
[1625158176439,0.01192839,2090.1,2088.8,0.15]
[1625158176593,0.01192839,2090.1,2088.8,9.71703]
[1625158176594,4.80442839,2090.1,2088.8,9.71703]
[1625158176740,0.2,2090.0,2088.8,9.56703]
[1625158176848,0.2,2090.0,2088.2,21.0681]
[1625158176940,0.24925847,2089.9,2088.2,21.0681]
[1625158177035,0.24925847,2089.9,2088.2,31.2626]
[1625158177146,3.58984,2089.7,2088.2,20.6535]
[1625158177241,0.23988885,2089.6,2088.2,20.6535]
[1625158177337,4.87058885,2089.6,2088.2,20.6535]
[1625158177439,19.88432601,2089.6,2088.2,20.6535]
[1625158177588,0.2,2089.5,2088.6,0.03526784]
[1625158177890,0.4215478,2089.5,2088.6,0.03526784]
[1625158178134,10.40648,2089.0,2088.6,0.03526784]
[1625158178482,3.2263,2089.0,2088.6,0.03526784]
[1625158178733,3.2263,2089.0,2088.3,0.03526784]
[1625158179486,1.4341,2089.1,2088.3,7.21454784]
[1625158179582,9.57187,2089.6,2088.3,7.21454784]
[1625158179831,0.2,2089.5,2088.3,7.21454784]
[1625158180204,0.2,2089.5,2088.3,12.22454784]
[1625158180372,8.23790073,2089.8,2088.4,3.81266784]
[1625158180373,2.052,2089.8,2088.4,3.81266784]
[1625158180509,3.60076839,2090.1,2088.4,3.81266784]
[1625158180510,0.01192839,2090.1,2089.0,10.55003]
[1625158180706,0.01192839,2090.1,2089.0,3.3732]
[1625158180861,0.08,2090.0,2089.0,3.3732]
[1625158181054,0.01192839,2090.1,2089.1,0.03526784]
[1625158181553,7.17759,2089.7,2089.1,0.03526784]
[1625158182055,7.17759,2089.7,2088.9,0.03526784]
[1625158182582,16.7479268,2090.0,2088.9,0.03526784]
[1625158182682,21.7579268,2090.0,2088.9,0.03526784]
[1625158182937,7.17732,2089.8,2088.9,7.21253784]
[1625158183035,7.17732,2089.8,2088.6,0.03526784]
[1625158183834,0.1,2089.7,2088.6,0.03526784]
[1625158183988,7.23809,2089.6,2088.7,7.17789]
[1625158184185,7.17809,2089.6,2088.7,7.17789]
[1625158184486,7.17809,2089.6,2088.8,0.03526784]
[1625158185323,7.17809,2089.6,2088.8,7.21269784]
[1625158185573,13.1588168,2090.0,2088.8,7.21269784]
[1625158185674,13.1588168,2090.0,2088.8,10.66509784]
[1625158185876,13.1588168,2090.0,2088.8,10.62983]
[1625158186033,0.01192839,2090.1,2088.8,15.63983]
[1625158186128,0.01192839,2090.1,2088.8,15.78983]
[1625158186475,0.01192839,2090.1,2088.9,0.03526784]
[1625158186678,0.01192839,2090.1,2089.3,7.17553]
[1625158186829,0.01192839,2090.1,2089.3,11.94973]
[1625158186924,0.01192839,2090.1,2089.3,16.95973]
[1625158187890,0.01192839,2090.1,2089.4,0.03526784]
[1625158188690,0.01192839,2090.1,2089.4,5.05686784]
[1625158188889,0.01192839,2090.1,2089.4,10.06686784]
[1625158189347,0.01192839,2090.1,2089.4,17.24192784]
[1625158189649,0.01192839,2090.1,2089.5,0.03526784]
[1625158190351,0.01192839,2090.1,2089.5,7.21001784]
[1625158190549,0.01192839,2090.1,2089.5,12.22001784]
[1625158191001,0.01192839,2090.1,2089.6,0.03526784]
[1625158191101,0.01192839,2090.1,2089.6,0.18526784]
[1625158191451,0.01192839,2090.1,2089.8,7.17281]
[1625158191584,0.01192839,2090.1,2089.8,12.18281]
[1625158192234,8.39e-06,2090.1,2089.8,12.18281]
[1625158192487,8.39e-06,2090.1,2089.9,0.15]
[1625158192592,8.39e-06,2090.1,2089.9,3.6163]
[1625158192688,8.39e-06,2090.1,2089.9,3.65156784]
[1625158192790,8.39e-06,2090.1,2089.9,8.66156784]
[1625158192888,8.39e-06,2090.1,2089.9,3.65156784]
[1625158192988,8.39e-06,2090.1,2089.9,8.66156784]
[1625158193288,7.17163,2091.3,2090.0,0.03526784]
[1625158193641,7.17163,2091.3,2090.0,7.20652784]
[1625158193740,0.16,2091.2,2090.0,0.03526784]
[1625158193877,4.851,2091.2,2090.0,0.03526784]
[1625158194075,0.08,2091.1,2090.0,0.03526784]
[1625158194177,0.08,2091.1,2090.1,0.03526784]
[1625158194278,14.57249,2091.4,2090.1,0.03526784]
[1625158194531,3.58656,2091.6,2090.1,0.03526784]
[1625158194726,8.59656,2091.6,2090.0,5.79036784]
[1625158194828,0.08,2091.5,2090.0,5.79036784]
[1625158195079,0.08,2091.5,2090.0,10.80036784]
[1625158195227,6.22394751,2091.8,2090.1,0.15]
[1625158195431,6.22394751,2091.8,2090.1,0.18526784]
[1625158195432,4.09994751,2091.8,2090.1,0.18526784]
[1625158195976,0.51406041,2091.8,2090.1,0.18526784]
[1625158196214,0.51406041,2091.8,2090.4,9.56041]
[1625158196317,0.51406041,2091.8,2090.4,11.15121]
[1625158196419,9.56237,2091.9,2090.4,11.30121]
[1625158196563,0.51406041,2092.1,2090.4,18.74947458]
[1625158196912,0.51406041,2092.1,2090.5,3.24966784]
[1625158197014,0.51406041,2092.1,2090.5,8.25966784]
[1625158197419,3.5852271,2092.2,2091.1,7.16851]
[1625158197420,7.16851,2092.2,2091.1,7.16851]
[1625158197522,12.46770041,2092.3,2091.1,11.50911]
[1625158197523,0.51406041,2092.3,2091.1,11.50911]
[1625158197664,0.50406041,2092.3,2091.1,16.51911]
[1625158198164,0.50406041,2092.3,2091.2,0.02821002]
[1625158198462,3.6444103,2092.6,2091.2,0.02821002]
[1625158198570,7.16837,2092.3,2091.2,0.02821002]
[1625158199014,10.7534364,2092.3,2091.2,0.02821002]
[1625158199168,26.5850664,2092.3,2091.2,0.02821002]
[1625158199267,32.3133,2092.3,2091.2,0.02821002]
[1625158199368,7.1589,2092.2,2091.2,0.02821002]
[1625158199517,12.1689,2092.2,2090.8,0.03526784]
[1625158199670,7.1716,2091.5,2090.8,0.03526784]
[1625158199864,9.56104,2091.9,2090.8,0.03526784]
[1625158199968,9.56104,2091.9,2090.5,0.03526784]
[1625158200169,5.01,2092.2,2090.5,0.03526784]
[1625158200264,7.17089,2092.3,2090.5,0.03526784]
[1625158200365,26.4237744,2092.4,2090.6,0.15]
[1625158200618,24.3897744,2092.4,2090.6,0.15]
[1625158200963,0.1,2092.3,2090.6,0.15]
[1625158201219,7.16999,2091.8,2090.6,9.70932]
[1625158201469,7.16999,2091.8,2090.6,0.15]
[1625158201567,7.16999,2091.8,2090.5,0.03526784]
[1625158201568,0.12,2091.7,2090.5,0.03526784]
[1625158201666,0.12,2091.7,2090.7,0.03526784]
[1625158201965,3.7060734,2091.7,2090.7,0.03526784]
[1625158202118,12.45,2091.6,2090.3,4.8679]
[1625158202216,7.16983,2091.8,2090.7,7.16982]
[1625158202316,9.79273938,2092.1,2090.7,7.16982]
[1625158202520,0.14,2092.0,2090.4,9.71004]
[1625158203339,0.14,2092.0,2090.4,14.72004]
[1625158203441,7.17059,2091.6,2090.5,7.17051]
[1625158203535,7.17059,2091.6,2090.5,12.18051]
[1625158203938,0.04,2091.5,2090.5,12.18051]
[1625158204236,7.17059,2091.6,2090.5,12.18051]
[1625158204690,5.01,2092.1,2090.5,5.01]
[1625158204888,9.6,2092.2,2090.4,0.15]
[1625158204986,11.712,2092.2,2090.4,0.15]
[1625158205115,0.18,2092.1,2090.4,0.15]
[1625158205666,7.69606041,2092.3,2090.4,0.15]
[1625158205763,7.074,2092.3,2090.4,0.15]
[1625158205961,2.064,2092.3,2090.4,3.3259]
[1625158206066,7.16975,2091.9,2090.4,17.89594]
[1625158206218,13.13616041,2092.4,2090.7,0.9304]
[1625158206318,0.51406041,2092.4,2090.7,0.9304]
[1625158206467,0.51406041,2092.4,2090.8,4.97250262]
[1625158206567,0.51406041,2092.4,2090.8,9.98250262]
[1625158206814,10.9821,2092.7,2090.8,24.98250262]
[1625158206916,0.06,2092.6,2090.8,17.98250262]
[1625158207114,0.1,2092.5,2090.8,9.98250262]
[1625158207214,0.1,2092.5,2090.8,17.98250262]
[1625158207358,10.9821,2092.7,2090.8,17.98250262]
[1625158207495,7.16714,2092.6,2091.4,11.07792]
[1625158207594,7.16714,2092.6,2091.4,16.08792]
[1625158208344,0.06,2092.5,2091.4,16.08792]
[1625158208496,7.16714,2092.6,2091.4,16.23792]
[1625158208648,12.46363041,2092.9,2091.4,16.23792]
[1625158208649,7.16647,2092.8,2091.4,16.23792]
[1625158209295,7.16647,2092.8,2091.4,9.0707]
[1625158209396,0.28601685,2092.2,2091.4,9.0707]
[1625158209648,0.28601685,2092.2,2091.4,11.50896458]
[1625158209744,0.28601685,2092.2,2091.4,18.67618458]
[1625158209839,0.28601685,2092.2,2091.4,26.67618458]
[1625158210133,0.28601685,2092.2,2091.4,11.50896458]
[1625158211166,0.28601685,2092.2,2091.4,19.50896458]
[1625158211468,0.28601685,2092.2,2091.8,7.16571]
[1625158211617,7.16572,2093.0,2091.8,7.16571]
[1625158211618,7.16572,2093.0,2091.9,29.55]
[1625158211721,10.1478,2093.2,2091.9,29.55]
[1625158211722,0.51406041,2093.2,2091.9,29.55]
[1625158211848,0.51406041,2093.2,2092.0,0.15]
[1625158212144,0.51406041,2093.2,2092.0,2.58826458]
[1625158212343,0.51406041,2093.2,2092.0,7.59826458]
[1625158212701,22.23163,2093.7,2092.0,7.59826458]
[1625158213048,7.16504,2093.3,2092.0,17.15084458]
[1625158213146,22.23163,2093.7,2092.0,17.15084458]
[1625158213347,10.2864,2093.7,2092.0,17.15084458]
[1625158213497,10.2864,2093.7,2092.0,25.15084458]
[1625158213851,10.2864,2093.7,2092.0,14.71258]
[1625158213951,25.2864,2093.7,2092.0,5.16]
[1625158214107,3.44397806,2093.6,2092.0,0.15]
[1625158214208,7.16624,2093.0,2092.0,5.16]
[1625158214407,0.08,2093.5,2092.0,0.15]
[1625158214513,3.5830943,2093.5,2092.0,5.16]
[1625158214605,3.5830943,2093.5,2092.0,0.15]
[1625158214702,3.5830943,2093.5,2092.0,5.16]
[1625158214908,0.06,2093.4,2091.7,9.2654]
[1625158215006,0.06,2093.4,2091.8,0.15]
[1625158215256,3.5830943,2093.5,2091.8,0.15]
[1625158216064,3.5830943,2093.5,2092.1,7.16481]
[1625158216065,7.16481,2093.3,2092.1,7.16481]
[1625158216369,7.16481,2093.3,2092.2,0.15]
[1625158216371,9.55348,2093.5,2092.2,0.15]
[1625158216372,10.2864,2093.7,2092.2,4.0155]
[1625158216466,9.55194,2093.8,2092.2,4.0155]
[1625158216564,9.55194,2093.8,2092.2,9.0255]
[1625158216865,0.12,2093.7,2092.2,9.0255]
[1625158217125,10.41239,2093.1,2092.2,9.0255]
[1625158217214,10.41239,2093.1,2092.2,4.0155]
[1625158217663,10.41239,2093.1,2092.2,0.15]
[1625158219583,38.42239,2093.1,2091.5,11.0548]
[1625158219733,0.43660212,2093.0,2091.6,0.15]
[1625158219825,2.81020402,2093.0,2090.9,31.3502]
[1625158219928,0.35,2092.9,2090.9,31.3502]
[1625158220078,0.43239898,2092.8,2090.9,31.3502]
[1625158220232,3.58465,2092.7,2090.9,31.3502]
[1625158220325,3.59800914,2092.6,2090.9,31.3502]
[1625158220480,7.16952,2091.9,2090.9,31.3502]
[1625158220578,0.21976085,2091.8,2090.9,10.284]
[1625158220956,0.04,2091.7,2090.9,10.284]
[1625158221060,0.04,2091.7,2090.4,10.0484]
[1625158221258,0.33773779,2091.6,2090.2,31.4719]
[1625158221410,0.33773779,2091.6,2090.2,32.1574]
[1625158221605,0.04,2091.5,2090.2,32.1574]
[1625158221708,7.17232,2091.1,2090.2,21.5204]
[1625158221806,3.3645,2091.1,2090.2,21.5204]
[1625158222405,3.3645,2091.1,2090.2,26.5304]
[1625158222504,3.3645,2091.1,2090.2,21.5204]
[1625158222860,0.21266833,2091.4,2090.2,21.5204]
[1625158222957,0.27502084,2091.6,2090.2,21.5204]
[1625158223133,0.27502084,2091.6,2090.3,0.15]
[1625158223229,9.76879311,2091.7,2090.3,0.15]
[1625158224429,7.171,2091.4,2090.3,9.71059]
[1625158224581,3.4036,2091.4,2090.3,14.72059]
[1625158224733,3.4036,2091.4,2090.3,5.16]
[1625158224929,3.4036,2091.4,2090.3,0.15]
[1625158225131,8.4136,2091.4,2090.2,11.0351]
[1625158225227,0.23605253,2091.3,2090.2,11.0351]
[1625158225377,0.35605253,2091.3,2090.2,11.0351]
[1625158225472,0.12,2091.3,2090.2,11.0351]